[Event "Titled Tuesday Blitz April 11 Late 2023"]
[White "Keymer, Vincent"]
[Black "Dobrikov, Marco"]
[WhiteFideId "12940690"]
[BlackFideId "12950378"]
[WhiteElo "2651"]
[BlackElo "2296"]
[Result "1/2-1/2"]
[Round "02"]
[TimeControl "180+2"]
[Date "2023.04.11"]
[WhiteClock "0:00:08"]
[BlackClock "0:00:16"]

1. a3 {[%clk 0:03:00]}  a6 {[%clk 0:02:58]} 2. Nf3 {[%clk 0:02:56]}  g6 {[%clk 0:02:58]} 3. d4 {[%clk 0:02:54]}  Nf6 {[%clk 0:02:57]} 4. c4 {[%clk 0:02:52]}  Bg7 {[%clk 0:02:57]} 5. Nc3 {[%clk 0:02:52]}  O-O {[%clk 0:02:45]} 6. e4 {[%clk 0:02:45]}  d6 {[%clk 0:02:46]} 7. Be2 {[%clk 0:02:44]}  e5 {[%clk 0:02:44]} 8. O-O {[%clk 0:02:43]}  Nc6 {[%clk 0:02:44]} 9. d5 {[%clk 0:02:42]}  Ne7 {[%clk 0:02:41]} 10. b4 {[%clk 0:02:41]}  Ne8 {[%clk 0:02:30]} 11. c5 {[%clk 0:02:05]}  f5 {[%clk 0:02:29]} 12. Ng5 {[%clk 0:02:03]}  Nf6 {[%clk 0:02:15]} 13. exf5 {[%clk 0:01:30]}  gxf5 {[%clk 0:02:09]} 14. Bb2 {[%clk 0:01:17]}  h6 {[%clk 0:02:04]} 15. cxd6 {[%clk 0:01:09]}  cxd6 {[%clk 0:01:41]} 16. Ne6 {[%clk 0:01:07]}  Bxe6 {[%clk 0:01:42]} 17. dxe6 {[%clk 0:01:08]}  d5 {[%clk 0:01:42]} 18. Na4 {[%clk 0:01:05]}  Qd6 {[%clk 0:01:40]} 19. Rc1 {[%clk 0:00:41]}  Rac8 {[%clk 0:01:37]} 20. Nc5 {[%clk 0:00:39]}  b6 {[%clk 0:01:23]} 21. f4 {[%clk 0:00:39]}  exf4 {[%clk 0:00:48]} 22. Nd7 {[%clk 0:00:27]}  Nxd7 {[%clk 0:00:44]} 23. Bxg7 {[%clk 0:00:27]}  Kxg7 {[%clk 0:00:43]} 24. exd7 {[%clk 0:00:27]}  Qxd7 {[%clk 0:00:44]} 25. Qd4+ {[%clk 0:00:27]}  Kh7 {[%clk 0:00:42]} 26. Bxa6 {[%clk 0:00:22]}  Rxc1 {[%clk 0:00:41]} 27. Rxc1 {[%clk 0:00:23]}  Qd6 {[%clk 0:00:42]} 28. Rf1 {[%clk 0:00:20]}  Ng6 {[%clk 0:00:40]} 29. Bd3 {[%clk 0:00:20]}  Qe6 {[%clk 0:00:32]} 30. Kh1 {[%clk 0:00:18]}  h5 {[%clk 0:00:32]} 31. h3 {[%clk 0:00:18]}  Kh6 {[%clk 0:00:32]} 32. a4 {[%clk 0:00:10]}  Ra8 {[%clk 0:00:32]} 33. b5 {[%clk 0:00:03]}  Re8 {[%clk 0:00:16]} 34. Qf2 {[%clk 0:00:03]}  Ra8 {[%clk 0:00:16]} 35. Re1 {[%clk 0:00:03]}  Qf6 {[%clk 0:00:16]} 36. Qf3 {[%clk 0:00:02]}  Rxa4 {[%clk 0:00:16]} 37. Be2 {[%clk 0:00:02]}  Qg5 {[%clk 0:00:13]} 38. Qxd5 {[%clk 0:00:02]}  Re4 {[%clk 0:00:13]} 39. Qd2 {[%clk 0:00:01]}  Re3 {[%clk 0:00:14]} 40. Rf1 {[%clk 0:00:02]}  Nh4 {[%clk 0:00:13]} 41. Bf3 {[%clk 0:00:02]}  Ng6 {[%clk 0:00:13]} 42. Qd6 {[%clk 0:00:02]}  Qe7 {[%clk 0:00:13]} 43. Qxb6 {[%clk 0:00:02]}  Qe5 {[%clk 0:00:13]} 44. Qc6 {[%clk 0:00:01]}  Rb3 {[%clk 0:00:13]} 45. Qc4 {[%clk 0:00:01]}  Rb2 {[%clk 0:00:13]} 46. b6 {[%clk 0:00:01]}  Rxb6 {[%clk 0:00:12]} 47. Qc2 {[%clk 0:00:01]}  Re6 {[%clk 0:00:13]} 48. Qd1 {[%clk 0:00:01]}  Qe3 {[%clk 0:00:13]} 49. Bxh5 {[%clk 0:00:01]}  Nh4 {[%clk 0:00:13]} 50. Bf3 {[%clk 0:00:01]}  Rg6 {[%clk 0:00:13]} 51. Qd5 {[%clk 0:00:01]}  Nxf3 {[%clk 0:00:11]} 52. Qxf3 {[%clk 0:00:02]}  Qxf3 {[%clk 0:00:10]} 53. Rxf3 {[%clk 0:00:03]}  Kg5 {[%clk 0:00:11]} 54. Kh2 {[%clk 0:00:03]}  Rd6 {[%clk 0:00:11]} 55. Rf2 {[%clk 0:00:03]}  Rd3 {[%clk 0:00:11]} 56. Re2 {[%clk 0:00:03]}  Re3 {[%clk 0:00:11]} 57. Rf2 {[%clk 0:00:03]}  Rd3 {[%clk 0:00:12]} 58. Rf3 {[%clk 0:00:03]}  Rxf3 {[%clk 0:00:10]} 59. gxf3 {[%clk 0:00:03]}  Kh4 {[%clk 0:00:11]} 60. Kg2 {[%clk 0:00:03]}  Kh5 {[%clk 0:00:11]} 61. Kg1 {[%clk 0:00:03]}  Kg5 {[%clk 0:00:11]} 62. Kf1 {[%clk 0:00:03]}  Kh5 {[%clk 0:00:12]} 63. Kf2 {[%clk 0:00:03]}  Kh4 {[%clk 0:00:12]} 64. Kg2 {[%clk 0:00:03]}  Kg5 {[%clk 0:00:13]} 65. Kh2 {[%clk 0:00:04]}  Kh5 {[%clk 0:00:13]} 66. Kg2 {[%clk 0:00:05]}  Kh4 {[%clk 0:00:14]} 67. Kh2 {[%clk 0:00:06]}  Kg5 {[%clk 0:00:15]} 68. Kg2 {[%clk 0:00:07]}  Kh5 {[%clk 0:00:15]} 69. Kh2 {[%clk 0:00:07]}  Kh4 {[%clk 0:00:16]} 70. Kg2 {[%clk 0:00:08]} 1/2-1/2


[Site "https://www.chess.com"]

[Event "Titled Tuesday Blitz April 11 Late 2023"]
[White "Hansen, Eric"]
[Black "Martic, Ivan"]
[WhiteFideId "2606771"]
[BlackFideId "929301"]
[WhiteElo "2561"]
[BlackElo "2360"]
[Result "1-0"]
[Round "02"]
[TimeControl "180+2"]
[Date "2023.04.11"]
[WhiteClock "0:00:29"]
[BlackClock "0:00:31"]

1. d4 {[%clk 0:03:00]}  d5 {[%clk 0:02:57]} 2. c4 {[%clk 0:02:55]}  c6 {[%clk 0:02:57]} 3. Nf3 {[%clk 0:02:55]}  Nf6 {[%clk 0:02:57]} 4. Nc3 {[%clk 0:02:55]}  dxc4 {[%clk 0:02:57]} 5. a4 {[%clk 0:02:47]}  Bf5 {[%clk 0:02:57]} 6. Ne5 {[%clk 0:02:46]}  Nbd7 {[%clk 0:02:55]} 7. Nxc4 {[%clk 0:02:45]}  Nb6 {[%clk 0:02:55]} 8. Ne5 {[%clk 0:02:44]}  a5 {[%clk 0:02:55]} 9. f3 {[%clk 0:02:44]}  Nfd7 {[%clk 0:02:54]} 10. e4 {[%clk 0:02:41]}  Nxe5 {[%clk 0:02:54]} 11. exf5 {[%clk 0:02:31]}  Ned7 {[%clk 0:02:53]} 12. g4 {[%clk 0:02:28]}  g6 {[%clk 0:02:50]} 13. Bd3 {[%clk 0:02:27]}  Bg7 {[%clk 0:02:49]} 14. Bc2 {[%clk 0:02:23]}  Nf6 {[%clk 0:02:44]} 15. h4 {[%clk 0:02:22]}  Nfd5 {[%clk 0:02:43]} 16. h5 {[%clk 0:02:21]}  Nb4 {[%clk 0:02:38]} 17. hxg6 {[%clk 0:02:07]}  hxg6 {[%clk 0:02:34]} 18. Rxh8+ {[%clk 0:02:08]}  Bxh8 {[%clk 0:02:35]} 19. fxg6 {[%clk 0:02:08]}  Qxd4 {[%clk 0:02:28]} 20. gxf7+ {[%clk 0:02:08]}  Kxf7 {[%clk 0:02:28]} 21. Bb3+ {[%clk 0:02:09]}  Ke8 {[%clk 0:02:23]} 22. Qxd4 {[%clk 0:02:09]}  Bxd4 {[%clk 0:02:24]} 23. Ke2 {[%clk 0:02:10]}  Kd7 {[%clk 0:02:11]} 24. Bf4 {[%clk 0:02:01]}  e5 {[%clk 0:02:08]} 25. Rd1 {[%clk 0:02:00]}  c5 {[%clk 0:02:08]} 26. Be3 {[%clk 0:01:53]}  Rh8 {[%clk 0:02:06]} 27. Rf1 {[%clk 0:01:26]}  Rh2+ {[%clk 0:02:03]} 28. Rf2 {[%clk 0:01:27]}  Rxf2+ {[%clk 0:02:01]} 29. Bxf2 {[%clk 0:01:19]}  Bxf2 {[%clk 0:02:01]} 30. Kxf2 {[%clk 0:01:19]}  c4 {[%clk 0:01:56]} 31. Bd1 {[%clk 0:01:19]}  Nd3+ {[%clk 0:01:56]} 32. Ke3 {[%clk 0:01:20]}  Nxb2 {[%clk 0:01:56]} 33. Bc2 {[%clk 0:01:18]}  Ke6 {[%clk 0:01:49]} 34. g5 {[%clk 0:01:13]}  Nd3 {[%clk 0:01:39]} 35. Ne4 {[%clk 0:00:51]}  Nd5+ {[%clk 0:01:34]} 36. Kd2 {[%clk 0:00:51]}  N5b4 {[%clk 0:01:17]} 37. Bb1 {[%clk 0:00:51]}  Nb2 {[%clk 0:01:05]} 38. Nc5+ {[%clk 0:00:40]}  Kd5 {[%clk 0:01:01]} 39. g6 {[%clk 0:00:36]}  Nc6 {[%clk 0:00:48]} 40. Be4+ {[%clk 0:00:31]}  Kxc5 {[%clk 0:00:44]} 41. Bxc6 {[%clk 0:00:32]}  bxc6 {[%clk 0:00:33]} 42. g7 {[%clk 0:00:32]}  Kd4 {[%clk 0:00:34]} 43. g8=Q {[%clk 0:00:32]}  c3+ {[%clk 0:00:34]} 44. Kc2 {[%clk 0:00:32]}  Nc4 {[%clk 0:00:34]} 45. Qd8+ {[%clk 0:00:30]}  Ke3 {[%clk 0:00:33]} 46. Qd3+ {[%clk 0:00:30]}  Kf4 {[%clk 0:00:32]} 47. Qe4+ {[%clk 0:00:27]}  Kg3 {[%clk 0:00:31]} 48. Qxc4 {[%clk 0:00:27]}  Kxf3 {[%clk 0:00:31]} 49. Kd3 {[%clk 0:00:27]}  c5 {[%clk 0:00:31]} 50. Qe4+ {[%clk 0:00:28]}  Kf2 {[%clk 0:00:31]} 51. Kxc3 {[%clk 0:00:29]} 1-0


[Site "https://www.chess.com"]

[Event "Titled Tuesday Blitz April 11 Late 2023"]
[White "Bakalchuk, Johnatan"]
[Black "Belov, Alexei"]
[WhiteFideId "2810301"]
[BlackFideId "4128206"]
[WhiteElo "2450"]
[BlackElo "2421"]
[Result "1-0"]
[Round "02"]
[TimeControl "180+2"]
[Date "2023.04.11"]
[WhiteClock "0:00:41"]
[BlackClock "0:00:40"]

1. e4 {[%clk 0:03:00]}  e6 {[%clk 0:02:59]} 2. b3 {[%clk 0:03:00]}  d5 {[%clk 0:02:59]} 3. Bb2 {[%clk 0:03:01]}  Nf6 {[%clk 0:02:59]} 4. e5 {[%clk 0:02:58]}  Nfd7 {[%clk 0:02:59]} 5. Qg4 {[%clk 0:02:59]}  c5 {[%clk 0:02:59]} 6. f4 {[%clk 0:02:59]}  Nc6 {[%clk 0:03:00]} 7. Nf3 {[%clk 0:03:00]}  Rb8 {[%clk 0:02:55]} 8. Nc3 {[%clk 0:02:59]}  a6 {[%clk 0:02:55]} 9. O-O-O {[%clk 0:02:59]}  b5 {[%clk 0:02:55]} 10. Ng5 {[%clk 0:02:53]}  h5 {[%clk 0:02:44]} 11. Qg3 {[%clk 0:02:49]}  b4 {[%clk 0:02:38]} 12. Nxe6 {[%clk 0:01:53]}  fxe6 {[%clk 0:02:25]} 13. Qg6+ {[%clk 0:01:52]}  Ke7 {[%clk 0:02:25]} 14. Nxd5+ {[%clk 0:01:50]}  exd5 {[%clk 0:02:18]} 15. Qxc6 {[%clk 0:01:50]}  Nb6 {[%clk 0:01:59]} 16. Qxc5+ {[%clk 0:01:42]}  Kf7 {[%clk 0:01:58]} 17. Qe3 {[%clk 0:01:34]}  Bf5 {[%clk 0:01:47]} 18. Bd3 {[%clk 0:01:34]}  Qd7 {[%clk 0:01:44]} 19. Rde1 {[%clk 0:01:28]}  d4 {[%clk 0:01:22]} 20. Bxf5 {[%clk 0:01:05]}  Qxf5 {[%clk 0:01:18]} 21. e6+ {[%clk 0:01:01]}  Ke8 {[%clk 0:01:16]} 22. Qxd4 {[%clk 0:00:53]}  Rc8 {[%clk 0:00:53]} 23. d3 {[%clk 0:00:45]}  Bc5 {[%clk 0:00:53]} 24. Qxg7 {[%clk 0:00:45]}  Rf8 {[%clk 0:00:45]} 25. Kb1 {[%clk 0:00:44]}  Nd5 {[%clk 0:00:40]} 26. Qd7# {[%clk 0:00:41]} 1-0


[Site "https://www.chess.com"]

[Event "Titled Tuesday Blitz April 11 Late 2023"]
[White "Janaszak, Dawid"]
[Black "Holt, Conrad"]
[WhiteFideId "1119206"]
[BlackFideId "2034387"]
[WhiteElo "2220"]
[BlackElo "2592"]
[Result "0-1"]
[Round "02"]
[TimeControl "180+2"]
[Date "2023.04.11"]
[WhiteClock "0:00:10"]
[BlackClock "0:01:39"]

1. e4 {[%clk 0:03:00]}  e6 {[%clk 0:02:59]} 2. d4 {[%clk 0:03:00]}  d5 {[%clk 0:02:59]} 3. Bd3 {[%clk 0:03:01]}  dxe4 {[%clk 0:02:59]} 4. Bxe4 {[%clk 0:03:02]}  Nf6 {[%clk 0:02:59]} 5. Bf3 {[%clk 0:03:02]}  Nbd7 {[%clk 0:02:58]} 6. Ne2 {[%clk 0:03:00]}  e5 {[%clk 0:02:58]} 7. O-O {[%clk 0:03:00]}  Bd6 {[%clk 0:02:58]} 8. Nd2 {[%clk 0:02:39]}  O-O {[%clk 0:02:54]} 9. Ng3 {[%clk 0:02:00]}  exd4 {[%clk 0:02:53]} 10. Nc4 {[%clk 0:02:00]}  Ne5 {[%clk 0:02:51]} 11. Nxd6 {[%clk 0:01:58]}  Qxd6 {[%clk 0:02:51]} 12. Be2 {[%clk 0:01:54]}  Re8 {[%clk 0:02:47]} 13. Kh1 {[%clk 0:01:47]}  Neg4 {[%clk 0:02:32]} 14. a4 {[%clk 0:01:21]}  h5 {[%clk 0:02:32]} 15. Bxg4 {[%clk 0:00:55]}  Nxg4 {[%clk 0:02:27]} 16. f4 {[%clk 0:00:46]}  h4 {[%clk 0:02:16]} 17. Ne2 {[%clk 0:00:46]}  h3 {[%clk 0:02:16]} 18. Nxd4 {[%clk 0:00:36]}  b6 {[%clk 0:02:09]} 19. Qf3 {[%clk 0:00:24]}  Qxd4 {[%clk 0:01:52]} 20. gxh3 {[%clk 0:00:17]}  Bf5 {[%clk 0:01:47]} 21. c3 {[%clk 0:00:15]}  Qd7 {[%clk 0:01:41]} 22. Qg3 {[%clk 0:00:10]}  Qc6+ {[%clk 0:01:39]} 23. Kg1 {[%clk 0:00:10]}  Qc5+ {[%clk 0:01:39]} 24. Kh1 {[%clk 0:00:10]}  Be4+ {[%clk 0:01:39]} 0-1


[Site "https://www.chess.com"]

[Event "Titled Tuesday Blitz April 11 Late 2023"]
[White "Mendonca, Leon Luke"]
[Black "Ibadov, Dashgyn"]
[WhiteFideId "35028561"]
[BlackFideId "24107514"]
[WhiteElo "2464"]
[BlackElo "2208"]
[Result "1-0"]
[Round "02"]
[TimeControl "180+2"]
[Date "2023.04.11"]
[WhiteClock "0:00:21"]
[BlackClock "0:00:01"]

1. e4 {[%clk 0:03:00]}  e5 {[%clk 0:02:57]} 2. Nf3 {[%clk 0:03:00]}  Nc6 {[%clk 0:02:58]} 3. Bc4 {[%clk 0:03:00]}  Bc5 {[%clk 0:02:57]} 4. c3 {[%clk 0:02:59]}  Nf6 {[%clk 0:02:57]} 5. d3 {[%clk 0:02:59]}  d6 {[%clk 0:02:57]} 6. a4 {[%clk 0:02:53]}  a6 {[%clk 0:02:57]} 7. h3 {[%clk 0:02:54]}  Ba7 {[%clk 0:02:56]} 8. Nbd2 {[%clk 0:02:54]}  h6 {[%clk 0:02:50]} 9. Nf1 {[%clk 0:02:52]}  g5 {[%clk 0:02:50]} 10. Be3 {[%clk 0:02:46]}  Bxe3 {[%clk 0:02:16]} 11. Nxe3 {[%clk 0:02:47]}  Be6 {[%clk 0:02:16]} 12. Nd2 {[%clk 0:02:25]}  Qd7 {[%clk 0:02:09]} 13. Qf3 {[%clk 0:02:21]}  Qe7 {[%clk 0:01:45]} 14. Nf5 {[%clk 0:02:16]}  Bxf5 {[%clk 0:01:42]} 15. Qxf5 {[%clk 0:02:17]}  Nd8 {[%clk 0:01:35]} 16. Nf1 {[%clk 0:02:10]}  Ne6 {[%clk 0:01:33]} 17. Ne3 {[%clk 0:02:10]}  Ng7 {[%clk 0:01:16]} 18. Qf3 {[%clk 0:02:08]}  O-O-O {[%clk 0:01:10]} 19. h4 {[%clk 0:02:02]}  Kb8 {[%clk 0:00:58]} 20. Ke2 {[%clk 0:01:53]}  Ne6 {[%clk 0:00:49]} 21. g3 {[%clk 0:01:47]}  g4 {[%clk 0:00:45]} 22. Nxg4 {[%clk 0:01:32]}  Nxg4 {[%clk 0:00:38]} 23. Qxg4 {[%clk 0:01:33]}  f5 {[%clk 0:00:20]} 24. Qxf5 {[%clk 0:01:24]}  Nc5 {[%clk 0:00:20]} 25. Qf7 {[%clk 0:01:22]}  Qxf7 {[%clk 0:00:12]} 26. Bxf7 {[%clk 0:01:23]}  Rhf8 {[%clk 0:00:12]} 27. Bc4 {[%clk 0:01:20]}  Rf6 {[%clk 0:00:10]} 28. b4 {[%clk 0:01:17]}  Nd7 {[%clk 0:00:09]} 29. Raf1 {[%clk 0:01:14]}  c6 {[%clk 0:00:09]} 30. a5 {[%clk 0:01:12]}  Kc7 {[%clk 0:00:08]} 31. f4 {[%clk 0:01:12]}  exf4 {[%clk 0:00:06]} 32. gxf4 {[%clk 0:01:11]}  Nf8 {[%clk 0:00:05]} 33. h5 {[%clk 0:00:23]}  d5 {[%clk 0:00:05]} 34. Bb3 {[%clk 0:00:23]}  dxe4 {[%clk 0:00:03]} 35. dxe4 {[%clk 0:00:23]}  Nd7 {[%clk 0:00:01]} 36. Rhg1 {[%clk 0:00:21]} 1-0


[Site "https://www.chess.com"]

[Event "Titled Tuesday Blitz April 11 Late 2023"]
[White "Francisco Guecamburu, Candela Be"]
[Black "Mekhitarian, Krikor Sevag"]
[WhiteFideId "160911"]
[BlackFideId "2107660"]
[WhiteElo "2326"]
[BlackElo "2604"]
[Result "0-1"]
[Round "02"]
[TimeControl "180+2"]
[Date "2023.04.11"]
[WhiteClock "0:00:04"]
[BlackClock "0:00:06"]

1. e4 {[%clk 0:03:00]}  c5 {[%clk 0:02:53]} 2. Nf3 {[%clk 0:03:00]}  e6 {[%clk 0:02:52]} 3. d4 {[%clk 0:03:00]}  cxd4 {[%clk 0:02:53]} 4. Nxd4 {[%clk 0:03:01]}  Nc6 {[%clk 0:02:48]} 5. Nb5 {[%clk 0:02:59]}  d6 {[%clk 0:02:47]} 6. c4 {[%clk 0:02:59]}  Nf6 {[%clk 0:02:39]} 7. N1c3 {[%clk 0:03:00]}  a6 {[%clk 0:02:39]} 8. Na3 {[%clk 0:02:59]}  b6 {[%clk 0:02:39]} 9. Be2 {[%clk 0:03:00]}  Bb7 {[%clk 0:02:40]} 10. Be3 {[%clk 0:03:00]}  Nb8 {[%clk 0:02:39]} 11. f3 {[%clk 0:03:00]}  Qc7 {[%clk 0:02:38]} 12. O-O {[%clk 0:03:00]}  Be7 {[%clk 0:02:39]} 13. Qe1 {[%clk 0:02:59]}  Nbd7 {[%clk 0:02:39]} 14. Qf2 {[%clk 0:03:00]}  O-O {[%clk 0:02:38]} 15. Rfd1 {[%clk 0:02:59]}  Rac8 {[%clk 0:02:37]} 16. Rac1 {[%clk 0:02:59]}  Rfe8 {[%clk 0:02:38]} 17. Nc2 {[%clk 0:02:46]}  Bd8 {[%clk 0:02:12]} 18. Kh1 {[%clk 0:02:08]}  Qb8 {[%clk 0:02:11]} 19. Na4 {[%clk 0:01:50]}  Bc6 {[%clk 0:02:02]} 20. Nc3 {[%clk 0:01:45]}  Bc7 {[%clk 0:02:02]} 21. Nb4 {[%clk 0:01:42]}  Bb7 {[%clk 0:02:02]} 22. c5 {[%clk 0:01:23]}  Nxc5 {[%clk 0:01:53]} 23. Bxc5 {[%clk 0:01:21]}  dxc5 {[%clk 0:01:44]} 24. Nxa6 {[%clk 0:01:21]}  Bxa6 {[%clk 0:01:44]} 25. Bxa6 {[%clk 0:01:22]}  Bxh2 {[%clk 0:01:45]} 26. Bxc8 {[%clk 0:01:18]}  Rxc8 {[%clk 0:01:46]} 27. Ne2 {[%clk 0:01:01]}  Be5 {[%clk 0:01:31]} 28. Rc2 {[%clk 0:00:59]}  Nh5 {[%clk 0:01:31]} 29. Rcd2 {[%clk 0:00:51]}  g5 {[%clk 0:01:27]} 30. Qe3 {[%clk 0:00:37]}  h6 {[%clk 0:01:26]} 31. b3 {[%clk 0:00:29]}  Nf4 {[%clk 0:01:06]} 32. Rd7 {[%clk 0:00:24]}  Nxe2 {[%clk 0:01:02]} 33. Qxe2 {[%clk 0:00:25]}  Bd4 {[%clk 0:01:02]} 34. Qa6 {[%clk 0:00:24]}  Rc7 {[%clk 0:00:59]} 35. Rd6 {[%clk 0:00:19]}  Rb7 {[%clk 0:00:43]} 36. e5 {[%clk 0:00:17]}  Kg7 {[%clk 0:00:44]} 37. R1xd4 {[%clk 0:00:08]}  cxd4 {[%clk 0:00:43]} 38. Qd3 {[%clk 0:00:08]}  Rc7 {[%clk 0:00:34]} 39. Qxd4 {[%clk 0:00:08]}  b5 {[%clk 0:00:35]} 40. Qd3 {[%clk 0:00:03]}  Rc1+ {[%clk 0:00:31]} 41. Kh2 {[%clk 0:00:04]}  Qa7 {[%clk 0:00:31]} 42. Qd4 {[%clk 0:00:03]}  Qxd4 {[%clk 0:00:05]} 43. Rxd4 {[%clk 0:00:04]}  Rc5 {[%clk 0:00:06]} 44. Re4 {[%clk 0:00:04]}  h5 {[%clk 0:00:07]} 45. Kg3 {[%clk 0:00:04]}  Kg6 {[%clk 0:00:07]} 46. a4 {[%clk 0:00:04]}  bxa4 {[%clk 0:00:07]} 47. bxa4 {[%clk 0:00:04]}  Kf5 {[%clk 0:00:08]} 48. Kh3 {[%clk 0:00:03]}  Rxe5 {[%clk 0:00:06]} 49. Rxe5+ {[%clk 0:00:03]}  Kxe5 {[%clk 0:00:07]} 50. a5 {[%clk 0:00:02]}  Kd6 {[%clk 0:00:08]} 51. f4 {[%clk 0:00:02]}  gxf4 {[%clk 0:00:07]} 52. Kh4 {[%clk 0:00:03]}  e5 {[%clk 0:00:06]} 53. Kxh5 {[%clk 0:00:03]}  Kc5 {[%clk 0:00:06]} 54. Kg4 {[%clk 0:00:04]}  Kb5 {[%clk 0:00:07]} 55. Kf5 {[%clk 0:00:04]}  f6 {[%clk 0:00:06]} 0-1


[Site "https://www.chess.com"]

[Event "Titled Tuesday Blitz April 11 Late 2023"]
[White "Lenaerts, Lennert"]
[Black "Costachi, Mihnea"]
[WhiteFideId "211435"]
[BlackFideId "1217518"]
[WhiteElo "2334"]
[BlackElo "2456"]
[Result "1-0"]
[Round "02"]
[TimeControl "180+2"]
[Date "2023.04.11"]
[WhiteClock "0:01:05"]
[BlackClock "0:01:03"]

1. d4 {[%clk 0:02:59]}  Nf6 {[%clk 0:02:59]} 2. c3 {[%clk 0:02:59]}  g6 {[%clk 0:03:00]} 3. g3 {[%clk 0:02:53]}  Bg7 {[%clk 0:03:00]} 4. Bg2 {[%clk 0:02:54]}  O-O {[%clk 0:03:01]} 5. e4 {[%clk 0:02:53]}  d6 {[%clk 0:03:00]} 6. Be3 {[%clk 0:02:52]}  e5 {[%clk 0:03:00]} 7. f3 {[%clk 0:02:52]}  Nc6 {[%clk 0:02:59]} 8. Ne2 {[%clk 0:02:51]}  Re8 {[%clk 0:02:58]} 9. d5 {[%clk 0:02:51]}  Ne7 {[%clk 0:02:57]} 10. O-O {[%clk 0:02:52]}  Rf8 {[%clk 0:02:58]} 11. c4 {[%clk 0:02:51]}  Ne8 {[%clk 0:02:58]} 12. Nbc3 {[%clk 0:02:50]}  f5 {[%clk 0:02:59]} 13. c5 {[%clk 0:02:48]}  Nf6 {[%clk 0:02:57]} 14. h3 {[%clk 0:02:45]}  h6 {[%clk 0:02:52]} 15. b4 {[%clk 0:02:44]}  g5 {[%clk 0:02:52]} 16. g4 {[%clk 0:02:35]}  fxe4 {[%clk 0:02:42]} 17. fxe4 {[%clk 0:02:34]}  Ng6 {[%clk 0:02:42]} 18. Ng3 {[%clk 0:02:33]}  Nf4 {[%clk 0:02:41]} 19. Rc1 {[%clk 0:02:30]}  a5 {[%clk 0:02:39]} 20. a3 {[%clk 0:02:29]}  axb4 {[%clk 0:02:39]} 21. axb4 {[%clk 0:02:30]}  Kh8 {[%clk 0:02:29]} 22. Qd2 {[%clk 0:02:25]}  Bd7 {[%clk 0:02:26]} 23. Ra1 {[%clk 0:02:24]}  Qe7 {[%clk 0:02:25]} 24. Kh2 {[%clk 0:02:04]}  Qf7 {[%clk 0:02:24]} 25. Nf5 {[%clk 0:01:52]}  h5 {[%clk 0:02:07]} 26. Bf3 {[%clk 0:01:46]}  Kh7 {[%clk 0:01:52]} 27. Rg1 {[%clk 0:01:39]}  h4 {[%clk 0:01:52]} 28. cxd6 {[%clk 0:01:33]}  Bxf5 {[%clk 0:01:51]} 29. exf5 {[%clk 0:01:33]}  cxd6 {[%clk 0:01:51]} 30. Ne4 {[%clk 0:01:32]}  Nxe4 {[%clk 0:01:44]} 31. Bxe4 {[%clk 0:01:33]}  Bf6 {[%clk 0:01:39]} 32. Rgc1 {[%clk 0:01:26]}  Rxa1 {[%clk 0:01:39]} 33. Rxa1 {[%clk 0:01:25]}  Rc8 {[%clk 0:01:40]} 34. Rc1 {[%clk 0:01:24]}  Qd7 {[%clk 0:01:40]} 35. Rc3 {[%clk 0:01:21]}  Bd8 {[%clk 0:01:25]} 36. f6+ {[%clk 0:01:14]}  Kh6 {[%clk 0:01:16]} 37. Bf5 {[%clk 0:01:15]}  Rxc3 {[%clk 0:01:11]} 38. Bxd7 {[%clk 0:01:15]}  Rd3 {[%clk 0:01:07]} 39. Bxf4 {[%clk 0:01:12]}  Rxd2+ {[%clk 0:01:07]} 40. Bxd2 {[%clk 0:01:13]}  Bxf6 {[%clk 0:01:07]} 41. Bf5 {[%clk 0:01:12]}  Bd8 {[%clk 0:01:06]} 42. Kg2 {[%clk 0:01:11]}  Kg7 {[%clk 0:01:07]} 43. Kf3 {[%clk 0:01:09]}  Kf6 {[%clk 0:01:07]} 44. Bc8 {[%clk 0:01:09]}  b6 {[%clk 0:01:07]} 45. Ke4 {[%clk 0:01:09]}  Bc7 {[%clk 0:01:07]} 46. Ba6 {[%clk 0:01:09]}  Bd8 {[%clk 0:01:08]} 47. Bf1 {[%clk 0:01:08]}  Bc7 {[%clk 0:01:09]} 48. Bg2 {[%clk 0:01:08]}  Bd8 {[%clk 0:01:10]} 49. Kd3 {[%clk 0:01:09]}  Kf7 {[%clk 0:01:08]} 50. Kc4 {[%clk 0:01:09]}  Ke8 {[%clk 0:01:07]} 51. Kb5 {[%clk 0:01:07]}  Kd7 {[%clk 0:01:08]} 52. Be3 {[%clk 0:01:06]}  Bf6 {[%clk 0:01:02]} 53. Be4 {[%clk 0:01:05]}  Bd8 {[%clk 0:01:02]} 54. Bxb6 {[%clk 0:01:05]}  Bxb6 {[%clk 0:01:03]} 55. Kxb6 {[%clk 0:01:05]} 1-0


[Site "https://www.chess.com"]

[Event "Titled Tuesday Blitz April 11 Late 2023"]
[White "Hajiyev, Kanan"]
[Black "Goltsev, Dmitry"]
[WhiteFideId "13404148"]
[BlackFideId "24176710"]
[WhiteElo "2103"]
[BlackElo "2336"]
[Result "0-1"]
[Round "02"]
[TimeControl "180+2"]
[Date "2023.04.11"]
[WhiteClock "0:00:06"]
[BlackClock "0:00:43"]

1. d4 {[%clk 0:02:59]}  Nf6 {[%clk 0:02:58]} 2. c4 {[%clk 0:02:59]}  e6 {[%clk 0:02:58]} 3. Nf3 {[%clk 0:02:59]}  Bb4+ {[%clk 0:02:59]} 4. Nbd2 {[%clk 0:02:59]}  Qe7 {[%clk 0:02:59]} 5. g3 {[%clk 0:02:58]}  b6 {[%clk 0:02:58]} 6. Bg2 {[%clk 0:02:58]}  Bb7 {[%clk 0:02:58]} 7. O-O {[%clk 0:02:59]}  Bxd2 {[%clk 0:02:57]} 8. Bxd2 {[%clk 0:02:57]}  O-O {[%clk 0:02:57]} 9. Bc3 {[%clk 0:02:53]}  d6 {[%clk 0:02:57]} 10. b3 {[%clk 0:02:45]}  a5 {[%clk 0:02:57]} 11. a3 {[%clk 0:02:36]}  Nbd7 {[%clk 0:02:56]} 12. Rc1 {[%clk 0:02:34]}  Ne4 {[%clk 0:02:55]} 13. Bb2 {[%clk 0:02:34]}  f5 {[%clk 0:02:55]} 14. e3 {[%clk 0:02:13]}  Ndf6 {[%clk 0:02:52]} 15. Ne1 {[%clk 0:01:55]}  c5 {[%clk 0:02:46]} 16. Qc2 {[%clk 0:01:50]}  Ng5 {[%clk 0:02:42]} 17. f3 {[%clk 0:01:44]}  e5 {[%clk 0:02:36]} 18. dxc5 {[%clk 0:01:35]}  dxc5 {[%clk 0:02:35]} 19. h4 {[%clk 0:01:32]}  Nf7 {[%clk 0:02:23]} 20. Nd3 {[%clk 0:01:31]}  Rad8 {[%clk 0:02:20]} 21. Rcd1 {[%clk 0:01:30]}  Nh5 {[%clk 0:02:19]} 22. Qf2 {[%clk 0:01:22]}  Rd7 {[%clk 0:02:08]} 23. Rd2 {[%clk 0:00:56]}  Rfd8 {[%clk 0:02:07]} 24. Rfd1 {[%clk 0:00:56]}  Qd6 {[%clk 0:01:47]} 25. Bc3 {[%clk 0:00:50]}  Qe6 {[%clk 0:01:28]} 26. Nb2 {[%clk 0:00:37]}  Rxd2 {[%clk 0:01:22]} 27. Rxd2 {[%clk 0:00:38]}  Rxd2 {[%clk 0:01:22]} 28. Bxd2 {[%clk 0:00:39]}  Nd6 {[%clk 0:01:17]} 29. Nd1 {[%clk 0:00:34]}  e4 {[%clk 0:01:17]} 30. f4 {[%clk 0:00:30]}  a4 {[%clk 0:01:06]} 31. bxa4 {[%clk 0:00:24]}  Qxc4 {[%clk 0:01:06]} 32. a5 {[%clk 0:00:20]}  bxa5 {[%clk 0:01:03]} 33. Bxa5 {[%clk 0:00:19]}  Qd3 {[%clk 0:00:52]} 34. Nc3 {[%clk 0:00:16]}  Ba6 {[%clk 0:00:46]} 35. Kh2 {[%clk 0:00:13]}  Nf6 {[%clk 0:00:44]} 36. Na2 {[%clk 0:00:06]}  Ng4+ {[%clk 0:00:43]} 0-1


[Site "https://www.chess.com"]